fUSD/lending_fUSD_20240826
["ID","MTS","AMOUNT","RATE_DAILY","PERIOD"]
[335986420,1724655045554,-500.0,0.00010999,2]
[335986422,1724655045563,-500.0,0.00010999,2]
[335986424,1724655045572,-500.0,0.00010999,2]
[335986426,1724655045581,-500.0,0.00010999,2]
[335986428,1724655045591,-500.0,0.00010999,2]
[335986430,1724655045600,-500.0,0.00010999,2]
[335986432,1724655045610,-500.0,0.00010999,2]
[335986434,1724655045619,-500.0,0.00010999,2]
[335986436,1724655045629,-601.58,0.00010999,2]
[335986438,1724655045638,-500.0,0.00010999,2]
[335986440,1724655045647,-247.46,0.00010999,2]
[335986441,1724655045656,-500.0,0.00010999,2]
[335986443,1724655045666,-500.0,0.00010999,2]
[335986445,1724655045681,-500.0,0.00010999,2]
[335986447,1724655045696,-500.0,0.00010999,2]
[335986449,1724655045705,-500.0,0.00010999,2]
[335986451,1724655045714,-500.0,0.00010999,2]
[335986453,1724655045723,-500.0,0.00010999,2]
[335986455,1724655045732,-500.0,0.00010999,2]
[335986457,1724655045742,-500.0,0.00010999,2]
[335986459,1724655045751,-500.0,0.00010999,2]
[335986460,1724655045761,-500.0,0.00010999,2]
[335986475,1724655045893,-500.0,0.00010999,2]
[335986477,1724655045903,-500.0,0.00010999,2]
[335986479,1724655045913,-500.0,0.00010999,2]
[335986481,1724655045922,-500.0,0.00010999,2]
[335986483,1724655045932,-500.0,0.00010999,2]
[335986485,1724655045941,-500.0,0.00010999,2]
[335986487,1724655045952,-500.0,0.00010999,2]
[335986489,1724655045961,-500.0,0.00010999,2]
[335986491,1724655045971,-500.0,0.00010999,2]
[335986493,1724655045982,-500.0,0.00010999,2]
[335986495,1724655045992,-500.0,0.00010999,2]
[335986497,1724655046001,-500.0,0.00010999,2]
[335986499,1724655046011,-500.0,0.00010999,2]
[335986501,1724655046022,-500.0,0.00010999,2]
[335986503,1724655046032,-500.0,0.00010999,2]
[335986505,1724655046042,-500.0,0.00010999,2]
[335986507,1724655046052,-573.37,0.00010999,2]
[335986509,1724655046061,-435.12,0.00010999,2]
[335986511,1724655046071,-500.0,0.00010999,2]
[335986513,1724655046081,-500.0,0.00010999,2]
[335986515,1724655046091,-2388.81570417,0.00010999,2]
[335986517,1724655046100,-500.0,0.00010999,2]
[335986519,1724655046110,-240.77010537,0.00010999,2]
[335986521,1724655046121,-704.3,0.00010999,2]
[335986523,1724655046132,-704.3,0.00010999,2]
[335986525,1724655046142,-704.3,0.00010999,2]
[335986527,1724655046152,-704.3,0.00010999,2]
[335986529,1724655046162,-704.3,0.00010999,2]
[335986531,1724655046171,-704.3,0.00010999,2]
[335986533,1724655046191,-704.3,0.00010999,2]
[335986535,1724655046200,-704.3,0.00010999,2]
[335986537,1724655046212,-704.3,0.00010999,2]
[335986539,1724655046221,-704.3,0.00010999,2]
[335986541,1724655046231,-704.3,0.00010999,2]
[335986543,1724655046240,-704.3,0.00010999,2]
[335986545,1724655046250,-704.3,0.00010999,2]
[335986547,1724655046259,-704.3,0.00010999,2]
[335986549,1724655046268,-704.3,0.00010999,2]
[335986550,1724655046277,-704.3,0.00010999,2]
[335986552,1724655046287,-704.3,0.00010999,2]
[335986554,1724655046297,-704.3,0.00010999,2]
[335986556,1724655046307,-704.3,0.00010999,2]
[335986558,1724655046315,-704.50809936,0.00010999,2]
[335986560,1724655046325,-693.51,0.00010999,2]
[335986562,1724655046334,-500.0,0.00010999,2]
[335986564,1724655046344,-693.51,0.00010999,2]
[335986566,1724655046353,-500.0,0.00010999,2]
[335986568,1724655046363,-693.51,0.00010999,2]
[335986569,1724655046371,-505.3068286,0.00010999,2]
[335986571,1724655046381,-693.51,0.00010999,2]
[335986573,1724655046390,-693.51,0.00010999,2]
[335986575,1724655046400,-693.51,0.00010999,2]
[335986577,1724655046409,-693.51,0.00010999,2]
[335986579,1724655046418,-693.51,0.00010999,2]
[335986581,1724655046433,-693.51,0.00010999,2]
[335986583,1724655046442,-500.0,0.00010999,2]
[335986585,1724655046452,-693.51,0.00010999,2]
[335986586,1724655046461,-500.0,0.00010999,2]
[335986588,1724655046471,-693.51,0.00010999,2]
[335986590,1724655046481,-500.0,0.00010999,2]
[335986592,1724655046491,-693.51,0.00010999,2]
[335986594,1724655046500,-500.0,0.00010999,2]
[335986596,1724655046510,-693.51,0.00010999,2]
[335986598,1724655046520,-500.0,0.00010999,2]
[335986600,1724655046530,-693.51,0.00010999,2]
[335986602,1724655046539,-500.0,0.00010999,2]
[335986604,1724655046549,-693.51,0.00010999,2]
[335986606,1724655046558,-500.0,0.00010999,2]
[335986608,1724655046568,-693.51,0.00010999,2]
[335986609,1724655046578,-693.51,0.00010999,2]
[335986611,1724655046587,-182.85,0.00010999,2]
[335986613,1724655046596,-693.51,0.00010999,2]
[335986615,1724655046606,-151.0,0.00010999,2]
[335986617,1724655046616,-693.51,0.00010999,2]
[335986619,1724655046625,-693.68054148,0.00010999,2]
[335986621,1724655046634,-151.0,0.00010999,2]
[335986623,1724655046643,-3678.21,0.00010999,2]
[335986625,1724655046653,-610.0,0.00010999,2]
[335986626,1724655046662,-675.766,0.00011,2]
[335986628,1724655046672,-150.0,0.00011,2]
[335986630,1724655046687,-598100.32983714,0.00011,2]
[335986632,1724655046697,-3704743.45481001,0.00011,2]
[335986653,1724655046898,-225.61711939,0.0001089,2]
[335986655,1724655046908,-59.50723652,0.000109,2]
[335986657,1724655046919,-124.50784075,0.000109,2]
[335986659,1724655046930,-500.0,0.00010998,2]
[335986661,1724655046940,-151.0,0.00010999,2]
[335986662,1724655046949,-500.0,0.00010999,2]
[335986664,1724655046958,-151.0,0.00010999,2]
[335986666,1724655046967,-500.0,0.00010999,2]
[335986668,1724655046976,-500.0,0.00010999,2]
[335986670,1724655046985,-226.789044,0.00010999,2]
[335986672,1724655046995,-500.0,0.00010999,2]
[335986674,1724655047004,-500.0,0.00010999,2]
[335986676,1724655047014,-500.0,0.00010999,2]
[335986678,1724655047023,-150.0,0.00011,2]
[335986680,1724655047032,-37229.62334235,0.00011,2]
[335986694,1724655047178,-14379.00495764,0.00011,2]
[335986696,1724655047191,-2422.93774298,0.00011,2]
[335986698,1724655047202,-807.36149997,0.00011,2]
[335986701,1724655047221,-500.0,0.00010999,2]
[335986703,1724655047231,-1035.2767552,0.00011,2]
[335986705,1724655047246,-318.9,0.00011,2]
[335986721,1724655047398,-500.0,0.00010999,2]
[335986723,1724655047410,-500.0,0.00010999,2]
[335986725,1724655047419,-280.83,0.00010999,2]
[335986727,1724655047432,-150.0,0.00011,2]
[335986729,1724655047441,-7900.29535924,0.00011,2]
[335986731,1724655047452,-267.29536608,0.00011,2]
[335986733,1724655047463,-515.811067,0.00011,2]
[335986735,1724655047474,-475.33246739,0.00011,2]
[335986737,1724655047485,-565.99524606,0.00011,2]
[335986739,1724655047496,-4911.22029618,0.00011,2]
[335986742,1724655047515,-226140.90373667,0.00011,2]
[335986744,1724655047528,-193249.51265325,0.00011,2]
[335986746,1724655047537,-118886.54834362,0.00011,2]
[335986748,1724655047546,-2000.0,0.00011,2]
[335986750,1724655047555,-2000.0,0.00011,2]
[335986752,1724655047564,-2000.0,0.00011,2]
[335986754,1724655047574,-226.23452389,0.00011,2]
[335986756,1724655047583,-1000.0,0.00011,2]
[335986757,1724655047593,-2174360.13771808,0.00011,2]
[335986760,1724655047604,-742.96054236,0.00011,2]
[335986762,1724655047615,-1404.61876171,0.00011,2]
[335986764,1724655047625,-372.12980446,0.00011,2]
[335986766,1724655047636,-3145.92623713,0.00011,2]
[335986768,1724655047651,-916.74900749,0.00011,2]
[335986783,1724655047792,-184.01507727,0.000109,2]
[335986785,1724655047802,-494.70842058,0.00010997,2]
[335986787,1724655047815,-5.29157942,0.00010997,2]
[335986789,1724655047823,-560.21,0.00010997,2]
[335986791,1724655047833,-500.0,0.00010998,2]
[335986793,1724655047842,-560.21,0.00010998,2]
[335986795,1724655047853,-118.61045095,0.00010998,2]
[335986797,1724655047865,-381.38954905,0.00010998,2]
[335986799,1724655047875,-36.56868668,0.00010998,2]
[335986801,1724655047887,-523.64131332,0.00010998,2]
[335986803,1724655047896,-500.0,0.00010998,2]
[335986805,1724655047906,-560.21,0.00010998,2]
[335986807,1724655047916,-500.0,0.00010999,2]
[335986809,1724655047927,-500.0,0.00010999,2]
[335986811,1724655047936,-180.12086001,0.00010999,2]
[335986813,1724655047947,-380.08913999,0.00010999,2]
[335986815,1724655047956,-469.94426467,0.00010999,2]
[335986817,1724655047967,-30.05573533,0.00010999,2]
[335986818,1724655047976,-500.0,0.00010999,2]
[335986820,1724655047985,-54959.4569976,0.00011,2]
[335986823,1724655048001,-560.21,0.00010999,2]
[335986825,1724655048010,-2141.02101814,0.00011,2]
[335986827,1724655048021,-4694.20147376,0.00011,2]
[335986829,1724655048032,-422.91126348,0.00011,2]
[335986831,1724655048046,-547.44,0.00011,2]
[335986833,1724655048057,-434.012,0.00011,2]
[335986836,1724655048068,-752.35803396,0.00011,2]
[335986838,1724655048079,-1531.57713695,0.00011,2]
[335986840,1724655048090,-1904.96994,0.00011,2]
[335986842,1724655048101,-1917.4034452,0.00011,2]
[335986844,1724655048112,-290.05976315,0.00011,2]
[335986846,1724655048124,-268.25,0.00011,2]
[335986848,1724655048137,-342.68211795,0.00011,2]
[335986850,1724655048148,-1217.64466643,0.00011,2]
[335986852,1724655048159,-1895.02744299,0.00011,2]
[335986855,1724655048178,-500.0,0.00010999,2]
[335986856,1724655048191,-6916.2350021,0.00011,2]
[335986858,1724655048202,-475.43617574,0.00011,2]
[335986861,1724655048220,-3398.41651,0.00011,2]
[335986863,1724655048230,-8046.26506283,0.00011,2]
[335986866,1724655048246,-12410.3791457,0.00011,2]
[335986868,1724655048258,-261.60174887,0.00011,2]
[335986870,1724655048270,-1128.75496496,0.00011,2]
[335986872,1724655048281,-1134.13449414,0.00011,2]
[335986874,1724655048292,-32947.27196235,0.00011,2]
[335986876,1724655048303,-283.49453764,0.00011,2]
[335986879,1724655048320,-560.21,0.00010999,2]
[335986881,1724655048330,-9362.83667477,0.00011,2]
[335986883,1724655048341,-1453.49,0.00011,2]
[335986885,1724655048352,-1110.1255479,0.00011,2]
[335986887,1724655048363,-3596.64044679,0.00011,2]
[335986889,1724655048375,-299.07844765,0.00011,2]
[335986891,1724655048385,-8843.92475302,0.00011,2]
[335986893,1724655048397,-156983.06089012,0.00011,2]
[335987833,1724655082979,157.16,7.59e-05,2]
[335987834,1724655093182,1000.0,0.0001,2]
[335987835,1724655173210,415.46,8.219e-05,2]
[335987836,1724655192796,23900.0,9.992e-05,2]
[335987999,1724655485361,1000.0,9.909e-05,2]
[335988002,1724655595209,-500.0,0.00024,60]
[335988003,1724655595255,-834.08,0.00024657,120]
[335988004,1724655595308,-500.0,0.00024932,120]
[335988005,1724655595363,-180.93791103,0.00025,60]
[335988006,1724655595411,-9372.27,0.00025,120]
[335988007,1724655615343,-834.08,0.00025342,120]
[335988008,1724655615400,-347.40406956,0.00026,120]
[335988009,1724655624906,392.1,9.888e-05,2]
[335988012,1724655667004,226.66,9.868e-05,2]
[335988015,1724655691918,250.0,9.864e-05,2]
[335988016,1724655717670,394.68,8.219e-05,2]
[335988020,1724655760383,317.16165236,9.962e-05,2]
[335988021,1724655769346,336.80860674,9.962e-05,2]
[335988022,1724655769776,9620.64558111,9.962e-05,2]
[335988024,1724655779772,792.05819084,9.962e-05,2]
[335988025,1724655785732,1257.5209126,9.962e-05,2]
[335988026,1724655793435,150.5,0.00017798,120]
[335988027,1724655793879,250.05,0.00017798,120]
[335988029,1724655794318,150.5,0.00017798,120]
[335988031,1724655794876,150.5,0.00017788,120]
[335988032,1724655795380,150.5,0.00017778,120]
[335988033,1724655795619,760.87027642,9.962e-05,2]
[335988034,1724655795912,254.08,0.00017798,120]
[335988036,1724655796044,150.5,0.00017788,120]
[335988037,1724655797096,150.5,0.00017778,120]
[335988038,1724655797565,150.5,0.00017798,120]
[335988039,1724655798044,150.5,0.00017788,120]
[335988040,1724655798536,503.625946,0.00025,120]
[335988041,1724655798604,150.5,0.00017778,120]
[335988042,1724655799397,210.87,0.00017798,120]
[335988043,1724655808898,502.397952,0.00025,120]
[335988044,1724655813009,500.0,0.00024932,120]
[335988049,1724655914532,544.0,0.00017798,120]
[335988050,1724655915016,544.0,0.00017788,120]
[335988051,1724655915472,544.0,0.00017778,120]
[335988052,1724655915946,544.0,0.00017798,120]
[335988053,1724655916418,544.0,0.00017788,120]
[335988054,1724655917329,544.0,0.00017778,120]
[335988055,1724655917792,544.0,0.00017798,120]
[335988056,1724655918334,544.0,0.00017788,120]
[335988057,1724655918838,544.0,0.00017798,120]
[335988058,1724655919982,549.0,0.00017788,120]
[335988059,1724655930113,2207.7,9.809e-05,2]
[335988060,1724655952192,500.0,9.935e-05,2]
[335988063,1724655982601,769.12972258,9.935e-05,2]
[335988064,1724655983253,792.05819084,9.935e-05,2]
[335988065,1724655985816,172.88,9.798e-05,2]
[335988066,1724656012726,41817.12,9.778e-05,2]
[335988067,1724656019638,200.0,9.786e-05,2]
[335988069,1724656076637,1924.97163931,9.934e-05,2]
[335988071,1724656098130,157.16,7.01e-05,2]
[335988073,1724656113264,457.46876333,9.786e-05,2]
[335988076,1724656128556,3406.18641792,0.00010009,2]
[335988083,1724656150021,533.25,9.759e-05,2]
[335988087,1724656195808,215.76,9.756e-05,2]
[335988094,1724656200194,250.0,9.756e-05,2]
[335988097,1724656217010,266.00251532,0.00010009,2]
[335988098,1724656218231,435.46,8.219e-05,2]
[335988103,1724656231850,-844.55925845,0.00010016,2]
[335988104,1724656231862,-888.53074155,0.00010016,2]
[335988105,1724656231871,-399.10220119,0.00010025,2]
[335988106,1724656231883,-1333.98779881,0.00010025,2]
[335988107,1724656231892,-32.01262732,0.00010025,2]
[335988108,1724656231903,-1701.07737268,0.00010025,2]
[335988109,1724656231913,-1733.09,0.00010025,2]
[335988110,1724656231924,-1245.53217127,0.00010025,2]
[335988111,1724656232104,-487.55782873,0.00010025,2]
[335988112,1724656232114,-12.44217127,0.00010025,2]
[335988113,1724656232128,-991.0,0.00010025,2]
[335988114,1724656232159,-729.64782873,0.00010025,2]
[335988115,1724656232169,-1185.42682039,0.00010025,2]
[335988116,1724656232180,-547.66317961,0.00010025,2]
[335988117,1724656232190,-1471.36634881,0.00010025,2]
[335988118,1724656232201,-261.72365119,0.00010025,2]
[335988119,1724656232211,-1733.09,0.00010025,2]
[335988121,1724656232221,-653.89626809,0.00010026,2]
[335988123,1724656232230,-210.24889066,0.00010034,2]
[335988124,1724656232240,-300.0,0.00010034,2]
[335988125,1724656232249,-21475.86053622,0.00010035,2]
[335988126,1724656232259,-1733.09,0.00010035,2]
[335988127,1724656232268,-7840.3,0.00010045,2]
[335988128,1724656232278,-211.29471139,0.00010097,2]
[335988129,1724656232288,-155.0,0.00010097,2]
[335988130,1724656232297,-591.87,0.00010097,2]
[335988131,1724656232307,-184.24,0.00010134,2]
[335988132,1724656232317,-499.99,0.00010134,2]
[335988133,1724656232326,-150.0,0.00010315,2]
[335988134,1724656232336,-299.99,0.00010316,2]
[335988135,1724656232346,-435.46,0.00010458,2]
[335988136,1724656232355,-4818.15,0.00010458,2]
[335988137,1724656232364,-150.99,0.00010469,2]
[335988138,1724656232374,-2135.32,0.00010478,2]
[335988139,1724656232383,-155.0,0.00010505,2]
[335988140,1724656232393,-547.39285044,0.00010505,2]
[335988141,1724656232402,-270.51980682,0.00010566,2]
[335988142,1724656232412,-440.37857631,0.00010566,2]
[335988143,1724656232426,-155.0,0.00010699,2]
[335988144,1724656232436,-154.32,0.000107,2]
[335988145,1724656232446,-150.0,0.000107,2]
[335988146,1724656232456,-150.0,0.000107,2]
[335988147,1724656232466,-3781.51,0.00010763,2]
[335988148,1724656232475,-4870.9752,0.0001079,2]
[335988149,1724656232485,-1035.0902,0.0001079,2]
[335988150,1724656232495,-272.8767,0.0001079,2]
[335988151,1724656232505,-365.948,0.0001079,2]
[335988152,1724656232514,-540.26226303,0.00010797,2]
[335988153,1724656232524,-531.7438359,0.00010799,2]
[335988154,1724656232534,-182.84649549,0.00010799,2]
[335988155,1724656237832,-308.66866659,0.00010471,2]
[335988156,1724656237843,-9.64721708,0.00010471,2]
[335988157,1724656237854,-90.50287636,0.00010799,2]
[335988158,1724656237863,-520.10642969,0.00010799,2]
[335988159,1724656237873,-403.29613528,0.000108,2]
[335988160,1724656237882,-698.85578953,0.00010836,2]
[335988161,1724656237899,-812.86059119,0.00010836,2]
[335988162,1724656237911,-519.07829482,0.00010836,2]
[335988163,1724656237923,-806.12101301,0.00010836,2]
[335988164,1724656237935,-794.86802,0.00010836,2]
[335988165,1724656238016,-162.70629145,0.00010836,2]
[335988166,1724656238026,-235.01593101,0.00010852,2]
[335988167,1724656238037,-31.75726464,0.00010852,2]
[335988168,1724656238047,-200.0,0.00010873,2]
[335988169,1724656238056,-500.0,0.00010873,2]
[335988170,1724656238066,-3730.65,0.00010889,2]
[335988171,1724656238076,-500.0,0.00010889,2]
[335988172,1724656238085,-500.0,0.00010889,2]
[335988173,1724656238095,-500.0,0.00010889,2]
[335988174,1724656238104,-500.0,0.00010889,2]
[335988175,1724656238115,-726.73,0.00010889,2]
[335988176,1724656238125,-857.34616085,0.00010889,2]
[335988177,1724656238136,-256.51383915,0.00010889,2]
[335988178,1724656238146,-500.0,0.00010889,2]
[335988179,1724656238155,-500.0,0.00010889,2]
[335988180,1724656238164,-503.24575541,0.00010889,2]
[335988181,1724656238175,-500.0,0.00010889,2]
[335988182,1724656238184,-186.95013057,0.00010889,2]
[335988183,1724656238194,-268.43873969,0.00010889,2]
[335988184,1724656238203,-500.0,0.00010889,2]
[335988185,1724656238213,-500.0,0.00010889,2]
[335988186,1724656238222,-500.0,0.00010889,2]
[335988187,1724656238232,-500.0,0.00010889,2]
[335988188,1724656238242,-500.0,0.00010889,2]
[335988189,1724656238252,-500.0,0.00010889,2]
[335988190,1724656238262,-506.95486806,0.00010889,2]
[335988191,1724656238272,-500.0,0.00010889,2]
[335988192,1724656238281,-500.0,0.00010889,2]
[335988193,1724656238290,-607.51,0.00010889,2]
[335988194,1724656238300,-500.0,0.00010889,2]
[335988195,1724656238310,-325.9,0.00010889,2]
[335988196,1724656238319,-500.0,0.00010889,2]
[335988197,1724656238328,-500.0,0.00010889,2]
[335988199,1724656238338,-500.0,0.00010889,2]
[335988200,1724656238348,-131.10479882,0.00010889,2]
[335988201,1724656238361,-368.89520118,0.00010889,2]
[335988202,1724656238371,-500.0,0.00010889,2]
[335988203,1724656238382,-500.0,0.00010889,2]
[335988204,1724656238393,-500.0,0.00010889,2]
[335988205,1724656238403,-500.0,0.00010889,2]
[335988206,1724656238412,-580.08,0.00010889,2]
[335988207,1724656238426,-500.0,0.00010889,2]
[335988208,1724656238436,-500.0,0.00010889,2]
[335988209,1724656238446,-500.0,0.00010889,2]
[335988210,1724656238457,-500.0,0.00010889,2]
[335988211,1724656238470,-500.0,0.00010889,2]
[335988212,1724656238480,-500.0,0.00010889,2]
[335988213,1724656238490,-500.0,0.00010889,2]
[335988214,1724656238500,-500.0,0.00010889,2]
[335988215,1724656238510,-500.0,0.00010889,2]
[335988216,1724656238520,-500.0,0.00010889,2]
[335988217,1724656238529,-68.16323491,0.00010889,2]
[335988218,1724656238546,-706.99676509,0.00010889,2]
[335988219,1724656238557,-500.0,0.00010889,2]
[335988220,1724656238570,-500.0,0.00010889,2]
[335988221,1724656238580,-530.85,0.00010889,2]
[335988222,1724656238589,-1011.51,0.00010889,2]
[335988223,1724656238599,-251.16083732,0.00010889,2]
[335988224,1724656238611,-248.83916268,0.00010889,2]
[335988225,1724656238621,-549.66,0.00010889,2]
[335988226,1724656238630,-67.19083732,0.00010889,2]
[335988227,1724656238643,-1083.17916268,0.00010889,2]
[335988228,1724656238652,-500.0,0.00010889,2]
[335988229,1724656238662,-500.0,0.00010889,2]
[335988230,1724656238677,-944.06,0.00010889,2]
[335988231,1724656238687,-500.0,0.00010889,2]
[335988232,1724656238698,-500.0,0.00010889,2]
[335988233,1724656238707,-500.0,0.00010889,2]
[335988234,1724656238717,-500.0,0.00010889,2]
[335988235,1724656238726,-804.19,0.00010889,2]
[335988236,1724656238736,-500.0,0.00010889,2]
[335988237,1724656238745,-500.0,0.00010889,2]
[335988238,1724656238755,-853.44,0.00010889,2]
[335988239,1724656238765,-1297.44,0.00010889,2]
[335988240,1724656238774,-500.0,0.00010889,2]
[335988241,1724656238784,-500.0,0.00010889,2]
[335988242,1724656238794,-500.0,0.00010889,2]
[335988243,1724656238804,-500.0,0.00010889,2]
[335988244,1724656238813,-500.0,0.00010889,2]
[335988245,1724656238823,-537.64,0.00010889,2]
[335988246,1724656238832,-500.0,0.00010889,2]
[335988247,1724656238842,-500.0,0.00010889,2]
[335988248,1724656238852,-759.81,0.00010889,2]
[335988249,1724656238863,-500.0,0.00010889,2]
[335988250,1724656238872,-590.53783419,0.00010889,2]
[335988251,1724656238882,-500.0,0.00010889,2]
[335988252,1724656238893,-3062.04,0.00010889,2]
[335988253,1724656238904,-500.0,0.00010889,2]
[335988254,1724656238914,-500.0,0.00010889,2]
[335988255,1724656238927,-500.0,0.00010889,2]
[335988256,1724656238936,-500.0,0.00010889,2]
[335988257,1724656238946,-500.0,0.00010889,2]
[335988258,1724656238956,-573.95609074,0.00010889,2]
[335988259,1724656238965,-500.0,0.00010889,2]
[335988260,1724656238980,-500.0,0.00010889,2]
[335988261,1724656238990,-500.0,0.00010889,2]
[335988262,1724656238999,-606.83118937,0.00010889,2]
[335988263,1724656239009,-500.0,0.00010889,2]
[335988264,1724656239020,-500.0,0.00010889,2]
[335988265,1724656239029,-2797.2,0.00010889,2]
[335988266,1724656239039,-500.0,0.00010889,2]
[335988267,1724656239048,-500.0,0.00010889,2]
[335988268,1724656239058,-500.0,0.00010889,2]
[335988269,1724656239068,-500.0,0.00010889,2]
[335988270,1724656239077,-500.0,0.00010889,2]
[335988271,1724656239087,-500.0,0.00010889,2]
[335988272,1724656239096,-500.0,0.00010889,2]
[335988273,1724656239106,-500.0,0.00010889,2]
[335988274,1724656239116,-500.0,0.00010889,2]
[335988275,1724656239126,-500.0,0.00010889,2]
[335988276,1724656239136,-1163.52,0.00010889,2]
[335988277,1724656239146,-500.0,0.00010889,2]
[335988278,1724656239156,-500.0,0.00010889,2]
[335988279,1724656239166,-541.38292344,0.00010889,2]
[335988280,1724656239179,-500.0,0.00010889,2]
[335988281,1724656239188,-500.0,0.00010889,2]
[335988282,1724656239198,-500.0,0.00010889,2]
[335988283,1724656239208,-500.0,0.00010889,2]
[335988284,1724656239218,-762.57,0.00010889,2]
[335988285,1724656239228,-500.0,0.00010889,2]
[335988286,1724656239238,-1243.25,0.00010889,2]
[335988287,1724656239248,-500.0,0.00010889,2]
[335988288,1724656239257,-500.0,0.00010889,2]
[335988289,1724656239266,-500.0,0.00010889,2]
[335988290,1724656239275,-500.0,0.00010889,2]
[335988291,1724656239285,-500.0,0.00010889,2]
[335988292,1724656239295,-500.0,0.00010889,2]
[335988293,1724656239305,-854.32,0.00010889,2]
[335988294,1724656239314,-500.17651998,0.00010889,2]
[335988295,1724656239324,-500.0,0.00010889,2]
[335988296,1724656239334,-500.0,0.00010889,2]
[335988297,1724656239344,-649.49,0.00010889,2]
[335988298,1724656239354,-500.0,0.00010889,2]
[335988299,1724656239364,-500.0,0.00010889,2]
[335988300,1724656239373,-500.0,0.00010889,2]
[335988301,1724656239383,-500.0,0.00010889,2]
[335988302,1724656239392,-927.29,0.00010889,2]
[335988303,1724656239402,-500.0,0.00010889,2]
[335988304,1724656239411,-1524.37,0.00010889,2]
[335988305,1724656239421,-518.15,0.00010889,2]
[335988306,1724656239440,-587.92370117,0.00010889,2]
[335988307,1724656239450,-500.0,0.00010889,2]
[335988308,1724656239459,-500.0,0.00010889,2]
[335988309,1724656239468,-500.0,0.00010889,2]
[335988310,1724656239478,-500.0,0.00010889,2]
[335988311,1724656239488,-500.0,0.00010889,2]
[335988312,1724656239497,-500.0,0.00010889,2]
[335988313,1724656239506,-500.0,0.00010889,2]
[335988314,1724656239516,-389.34306352,0.00010889,2]
[335988315,1724656239526,-500.0,0.00010889,2]
[335988316,1724656239536,-500.0,0.00010889,2]
[335988317,1724656239545,-500.0,0.00010889,2]
[335988319,1724656239555,-603.48,0.00010889,2]
[335988320,1724656239570,-500.0,0.00010889,2]
[335988321,1724656239579,-185105.3943682,0.0001089,2]
[335988322,1724656239592,-998.96593,0.0001089,2]
[335988323,1724656239603,-205.6772233,0.0001089,2]
[335988324,1724656239613,-500.0,0.00010895,2]
[335988325,1724656239623,-457.99429902,0.00010895,2]
[335988326,1724656239633,-500.0,0.00010895,2]
[335988327,1724656239645,-500.0,0.00010895,2]
[335988328,1724656239655,-401.0362387,0.00010895,2]
[335988329,1724656239665,-500.0,0.00010895,2]
[335988330,1724656239679,-500.0,0.00010895,2]
[335988331,1724656239689,-500.0,0.00010895,2]
[335988332,1724656239699,-500.0,0.00010895,2]
[335988333,1724656239710,-500.0,0.00010895,2]
[335988334,1724656239719,-500.0,0.00010895,2]
[335988335,1724656239729,-500.0,0.00010895,2]
[335988336,1724656239739,-500.0,0.00010895,2]
[335988337,1724656239748,-500.0,0.00010895,2]
[335988338,1724656239758,-500.0,0.00010895,2]
[335988339,1724656239767,-500.0,0.00010895,2]
[335988340,1724656239777,-500.0,0.00010895,2]